lending/lending_fUSD_20241214
["ID","MTS","AMOUNT","RATE_DAILY","PERIOD"]
[345359578,1734181863412,-131906.40315247,0.00027997,61]
[345359579,1734181863428,-2000.0,0.00027998,30]
[345359580,1734181863441,-500.0,0.00027998,3]
[345359581,1734181863451,-973.29,0.00027998,3]
[345359582,1734181863462,-664.07,0.00027998,3]
[345359583,1734181863472,-500.0,0.00027998,3]
[345359584,1734181863482,-500.0,0.00027998,3]
[345359585,1734181863493,-838.65,0.00027998,3]
[345359586,1734181863502,-649.31,0.00027998,3]
[345359587,1734181863512,-523.6,0.00027998,3]
[345359588,1734181863522,-529.76,0.00027999,3]
[345359589,1734181863532,-529.76,0.00027999,3]
[345359590,1734181863542,-529.76,0.00027999,3]
[345359591,1734181863551,-529.76,0.00027999,3]
[345359592,1734181863561,-529.76,0.00027999,3]
[345359593,1734181863571,-529.79182137,0.00027999,3]
[345359594,1734181863580,-1000.0,0.00027999,3]
[345359595,1734181863589,-1000.0,0.00027999,3]
[345359596,1734181863599,-507.7,0.00027999,120]
[345359597,1734181863608,-507.7,0.00027999,120]
[345359598,1734181863619,-507.7,0.00027999,120]
[345359599,1734181863629,-507.7,0.00027999,120]
[345359600,1734181863639,-507.7,0.00027999,120]
[345359601,1734181863649,-507.7,0.00027999,120]
[345359602,1734181863659,-507.7,0.00027999,120]
[345359603,1734181863671,-507.7,0.00027999,120]
[345359604,1734181863681,-507.7,0.00027999,120]
[345359605,1734181863691,-507.7,0.00027999,120]
[345359606,1734181863701,-507.7,0.00027999,120]
[345359607,1734181863711,-507.7,0.00027999,120]
[345359608,1734181863722,-507.7,0.00027999,120]
[345359609,1734181863731,-507.70970022,0.00027999,120]
[345359610,1734181863742,-2000.0,0.00027999,30]
[345359611,1734181863751,-266.73119303,0.00027999,30]
[345359612,1734181863761,-500.0,0.00027999,3]
[345359613,1734181863772,-495.66,0.00027999,3]
[345359614,1734181863781,-500.0,0.00027999,3]
[345359615,1734181863791,-500.0,0.00027999,3]
[345359616,1734181863800,-500.0,0.00027999,3]
[345359617,1734181863810,-500.0,0.00027999,3]
[345359618,1734181863820,-500.0,0.00027999,3]
[345359619,1734181863830,-500.0,0.00027999,3]
[345359620,1734181863840,-448.97,0.00027999,3]
[345359621,1734181863849,-500.0,0.00027999,3]
[345359622,1734181863859,-500.0,0.00027999,3]
[345359623,1734181863869,-500.0,0.00027999,3]
[345359624,1734181863879,-500.0,0.00027999,3]
[345359625,1734181863888,-500.0,0.00027999,3]
[345359626,1734181863898,-500.0,0.00027999,3]
[345359627,1734181863908,-500.0,0.00027999,3]
[345359628,1734181863922,-500.0,0.00027999,3]
[345359629,1734181863932,-500.0,0.00027999,3]
[345359630,1734181863942,-500.0,0.00027999,3]
[345359631,1734181863955,-233.02,0.00027999,3]
[345359632,1734181863964,-500.0,0.00027999,3]
[345359633,1734181863974,-494.87672604,0.00027999,3]
[345359634,1734181863983,-1996.42,0.00027999,3]
[345359635,1734181863992,-1996.42,0.00027999,3]
[345359636,1734181864002,-1996.42,0.00027999,3]
[345359637,1734181864011,-1996.42,0.00027999,3]
[345359638,1734181864022,-1996.42,0.00027999,3]
[345359639,1734181864032,-1996.42,0.00027999,3]
[345359640,1734181864041,-1996.42,0.00027999,3]
[345359641,1734181864051,-1996.42,0.00027999,3]
[345359642,1734181864061,-1996.42,0.00027999,3]
[345359643,1734181864071,-1996.42,0.00027999,3]
[345359644,1734181864081,-1996.42,0.00027999,3]
[345359645,1734181864090,-1996.42,0.00027999,3]
[345359646,1734181864099,-1996.42,0.00027999,3]
[345359647,1734181864109,-1996.62,0.00027999,3]
[345359648,1734181864118,-500.0,0.00027999,3]
[345359649,1734181864128,-234.32308421,0.00027999,3]
[345359650,1734181864138,-482.9157025,0.00027999,3]
[345359651,1734181864147,-500.0,0.00027999,3]
[345359652,1734181864157,-343.94998301,0.00027999,3]
[345359653,1734181864172,-709.56,0.00027999,3]
[345359654,1734181864182,-709.56,0.00027999,3]
[345359655,1734181864192,-709.56,0.00027999,3]
[345359656,1734181864201,-709.56,0.00027999,3]
[345359657,1734181864211,-709.56,0.00027999,3]
[345359658,1734181864221,-709.56,0.00027999,3]
[345359659,1734181864231,-709.56,0.00027999,3]
[345359660,1734181864241,-709.56,0.00027999,3]
[345359661,1734181864250,-709.56,0.00027999,3]
[345359662,1734181864260,-709.56,0.00027999,3]
[345359663,1734181864271,-709.56,0.00027999,3]
[345359664,1734181864281,-709.56,0.00027999,3]
[345359665,1734181864291,-709.63,0.00027999,3]
[345359666,1734181864300,-500.0,0.00027999,3]
[345359667,1734181864309,-500.0,0.00027999,3]
[345359668,1734181864319,-500.0,0.00027999,3]
[345359669,1734181864335,-500.0,0.00027999,3]
[345359670,1734181864346,-500.0,0.00027999,3]
[345359671,1734181864356,-500.0,0.00027999,3]
[345359672,1734181864367,-500.0,0.00027999,3]
[345359673,1734181864377,-500.0,0.00027999,3]
[345359674,1734181864387,-555.67,0.00027999,3]
[345359675,1734181864396,-973.29,0.00027999,3]
[345359676,1734181864405,-973.29,0.00027999,3]
[345359677,1734181864415,-973.29,0.00027999,3]
[345359678,1734181864428,-973.29,0.00027999,3]
[345359679,1734181864442,-973.29,0.00027999,3]
[345359680,1734181864451,-973.34006159,0.00027999,3]
[345359681,1734181864461,-664.07,0.00027999,3]
[345359682,1734181864471,-664.07,0.00027999,3]
[345359683,1734181864481,-664.07,0.00027999,3]
[345359684,1734181864490,-664.07,0.00027999,3]
[345359685,1734181864500,-664.07,0.00027999,3]
[345359686,1734181864511,-664.07,0.00027999,3]
[345359687,1734181864520,-500.0,0.00027999,3]
[345359688,1734181864530,-500.0,0.00027999,3]
[345359689,1734181864539,-500.0,0.00027999,3]
[345359690,1734181864548,-185.72,0.00027999,3]
[345359691,1734181864557,-500.0,0.00027999,3]
[345359692,1734181864567,-500.0,0.00027999,3]
[345359693,1734181864576,-500.0,0.00027999,3]
[345359694,1734181864586,-500.0,0.00027999,3]
[345359695,1734181864595,-500.0,0.00027999,3]
[345359696,1734181864604,-309.65082972,0.00027999,3]
[345359697,1734181864614,-500.0,0.00027999,3]
[345359698,1734181864623,-500.0,0.00027999,3]
[345359699,1734181864633,-500.0,0.00027999,3]
[345359700,1734181864642,-500.0,0.00027999,3]
[345359701,1734181864651,-838.65,0.00027999,3]
[345359702,1734181864660,-500.0,0.00027999,3]
[345359703,1734181864673,-551.74,0.00027999,3]
[345359704,1734181864682,-838.65,0.00027999,3]
[345359705,1734181864691,-838.65,0.00027999,3]
[345359706,1734181864701,-838.65,0.00027999,3]
[345359707,1734181864710,-838.65,0.00027999,3]
[345359708,1734181864719,-838.66278553,0.00027999,3]
[345359709,1734181864729,-2498.98,0.00027999,3]
[345359710,1734181864738,-2498.98,0.00027999,3]
[345359711,1734181864747,-2498.98,0.00027999,3]
[345359712,1734181864756,-2498.98,0.00027999,3]
[345359713,1734181864765,-2498.98,0.00027999,3]
[345359714,1734181864775,-2498.98,0.00027999,3]
[345359715,1734181864784,-2498.98,0.00027999,3]
[345359716,1734181864793,-2498.98,0.00027999,3]
[345359717,1734181864803,-2498.98,0.00027999,3]
[345359718,1734181864812,-2498.98,0.00027999,3]
[345359719,1734181864821,-2498.98,0.00027999,3]
[345359720,1734181864830,-2498.98,0.00027999,3]
[345359721,1734181864840,-2498.98,0.00027999,3]
[345359722,1734181864849,-2499.21818193,0.00027999,3]
[345359723,1734181864858,-649.31,0.00027999,3]
[345359724,1734181864867,-649.31,0.00027999,3]
[345359725,1734181864877,-649.31,0.00027999,3]
[345359726,1734181864886,-649.31,0.00027999,3]
[345359727,1734181864895,-649.31,0.00027999,3]
[345359728,1734181864904,-649.48,0.00027999,3]
[345359729,1734181864914,-984.78,0.00027999,3]
[345359730,1734181864927,-984.78,0.00027999,3]
[345359731,1734181864936,-984.78,0.00027999,3]
[345359732,1734181864946,-984.78,0.00027999,3]
[345359733,1734181864955,-984.78,0.00027999,3]
[345359734,1734181864965,-984.95565118,0.00027999,3]
[345359735,1734181864974,-523.6,0.00027999,3]
[345359736,1734181864983,-523.6,0.00027999,3]
[345359737,1734181864993,-523.6,0.00027999,3]
[345359738,1734181865002,-523.6,0.00027999,3]
[345359739,1734181865011,-523.6,0.00027999,3]
[345359740,1734181865021,-523.82412941,0.00027999,3]
[345359741,1734181865030,-500.0,0.00027999,3]
[345359742,1734181865040,-588.08,0.00027999,3]
[345359743,1734181865049,-2000.0,0.00028,120]
[345359744,1734181865059,-234.80624,0.00028,120]
[345359745,1734181865068,-293.5078,0.00028,120]
[345359746,1734181865076,-30037.44036074,0.00028,15]
[345359747,1734181865086,-3388.14702247,0.00028,2]
[345359748,1734181865095,-248.1815956,0.00028,2]
[345359749,1734181865105,-10000.0,0.00028,7]
[345359750,1734181865114,-2614631.19840442,0.00028,120]
[345359751,1734181865123,-2000.0,0.00028,15]
[345359752,1734181865133,-2000.0,0.00028,30]
[345359753,1734181865142,-17002.0,0.00028,14]
[345359754,1734181865151,-157586.83478025,0.00028,120]
[345359755,1734181865574,-500.0,0.00021999,3]
[345359756,1734181865584,-500.0,0.00022174,3]
[345359757,1734181865593,-500.0,0.00022399,3]
[345359758,1734181865603,-5717.7,0.00022921,2]
[345359759,1734181865614,-1012.1,0.00022921,2]
[345359760,1734181865907,-153.0,0.00019942,2]
[345359761,1734181865917,-20190.74761434,0.00022921,2]
[345359762,1734181865926,-500.0,0.00024788,3]
[345359763,1734181865936,-3000.0,0.00024969,2]
[345359764,1734181865945,-3000.0,0.00024994,2]
[345359765,1734181865955,-1289.36,0.00024997,2]
[345359766,1734181865964,-3000.0,0.00025004,2]
[345359767,1734181865973,-594.45554596,0.000257,2]
[345359768,1734181865983,-500.0,0.00026549,3]
[345359769,1734181865992,-500.0,0.00026594,3]
[345359770,1734181866002,-500.0,0.00026594,3]
[345359771,1734181866011,-500.0,0.00026594,3]
[345359772,1734181866021,-316.57140952,0.0002692,2]
[345359773,1734181866030,-500.0,0.00027007,3]
[345359774,1734181866040,-500.0,0.00027009,3]
[345359775,1734181866048,-500.0,0.00027009,3]
[345359776,1734181866058,-242.96,0.00027009,3]
[345359777,1734181866067,-500.0,0.00027009,3]
[345359778,1734181866076,-345.23078322,0.00027009,3]
[345359779,1734181866085,-117048.39517829,0.00028,120]
[345359780,1734181866095,-53171.0422529,0.00028,4]
[345359781,1734181866104,-8000.0,0.00028,120]
[345359782,1734181866113,-2000.0,0.00028,90]
[345359783,1734181866122,-11688.66505349,0.00028,2]
[345359784,1734181866131,-4232.08944724,0.00028,2]
[345359785,1734181866140,-132775.13068945,0.00028,2]
[345359786,1734181866149,-87255.53029849,0.00028,2]
[345359787,1734181866186,-19406.86968056,0.00028,2]
[345359788,1734181866471,6301380.60239649,0.0002,120]
[345359789,1734181866506,16000000.0,0.0002,120]
[345359790,1734181866532,300000.0,0.0002,120]
[345359791,1734182136832,10000.0,0.00012001,2]
[345359792,1734182152768,216.76,0.00010137,2]
[345359794,1734182708154,4745577.23929602,0.0001,2]
[345359795,1734182725563,979.94626606,0.000108,2]
[345359796,1734182734667,150.88134505,0.0001,2]
[345359797,1734182736493,5000.0,8e-05,2]
[345359799,1734182755322,10430.56229143,6.94e-05,2]
[345359800,1734182762978,7792.84436032,9.8e-05,2]
[345359801,1734182767201,729.51057554,7e-05,2]
[345359804,1734182828179,-152.12,0.00013699,2]
[345359805,1734182828202,-818.56945266,0.00013736,2]
[345359806,1734182828227,-1000.0,0.00013835,2]
[345359807,1734182828251,-59.06516297,0.00013835,2]
[345359808,1734182839346,205.0,9.8e-05,2]
[345359809,1734182843393,247.82237527,0.000101,2]
[345359810,1734182847151,-90.93483703,0.00013835,2]
[345359811,1734182847174,-300.0,0.00013835,2]
[345359812,1734182847382,-478.38067496,0.00013836,2]
[345359813,1734182854109,-8845.15787893,0.00013836,2]
[345359815,1734182879918,11141095.7548024,0.000119,2]
[345359825,1734182958114,-300.0,0.00013835,2]
[345359826,1734182958139,-2907.133104,0.00013836,2]
[345359827,1734182958165,-2515.32834211,0.00013836,2]
[345359828,1734182958186,-14741.0,0.00013836,2]
[345359829,1734182958210,-14741.0,0.00013836,2]
[345359830,1734182958231,-14741.0,0.00013836,2]
[345359831,1734182958253,-12439.95613264,0.00013836,2]
[345359832,1734182965102,-2301.04386736,0.00013836,2]
[345359833,1734182965134,-14741.0,0.00013836,2]
[345359834,1734182965165,-255.0,0.00014955,2]
[345359835,1734182965188,-1221.72622199,0.00015,2]
[345359836,1734182965216,-420.0,0.00015159,2]
[345359837,1734182965238,-4040.0,0.000157,2]
[345359838,1734182965259,-587.0,0.0001661,2]
[345359839,1734182965280,-216.76,0.00016813,2]
[345359840,1734182965301,-459.63877065,0.00017,5]
[345359841,1734182968084,-2334.79417262,0.00017,5]
[345359842,1734182986502,20000.0,0.00019,30]
[345359843,1734182995301,142.83999981,0.00013,2]
[345359844,1734183028638,9039.0,0.00019,30]
[345359857,1734183032207,-307.16000019,0.00013,2]
[345359858,1734183032217,-500.0,0.00015,2]
[345359859,1734183032227,-550.0,0.00017,2]
[345359860,1734183032237,-1098.46499981,0.00017544,2]
[345359861,1734183032248,-115.30500019,0.00017544,2]
[345359862,1734183032258,-300.0,0.00017677,2]
[345359863,1734183032267,-25074.89557759,0.00017678,2]
[345359864,1734183032277,-2501.01705,0.00018,2]
[345359865,1734183032287,-15091.53927819,0.00018,2]
[345359866,1734183032296,-200.0,0.00018368,2]
[345359867,1734183032306,-250.0,0.00018683,2]
[345359868,1734183032315,-15958.3157075,0.000189,2]
[345359869,1734183032324,-373.28854244,0.00019,2]
[345359870,1734183032333,-600.0,0.00019,2]
[345359871,1734183032343,-10492.46558148,0.0001901,2]
[345359872,1734183032354,-5695.88927163,0.0001901,2]
[345359873,1734183032364,-631.15294342,0.00019078,2]
[345359874,1734183032373,-1500.0,0.00019133,2]
[345359875,1734183032382,-968.44411383,0.00019178,5]
[345359876,1734183032391,-240.74,0.00019227,2]
[345359877,1734183032401,-250.0,0.00019377,2]
[345359878,1734183032410,-1852.42,0.0001939,2]
[345359879,1734183032419,-500.0,0.00019392,2]
[345359880,1734183032429,-292.09107463,0.00019392,2]
[345359881,1734183032441,-500.0,0.00019392,2]
[345359882,1734183032450,-500.0,0.00019392,2]
[345359883,1734183032459,-600.53853914,0.00019392,2]
[345359884,1734183032468,-325.54,0.00019393,2]
[345359885,1734183032478,-1109.78,0.00019393,2]
[345359886,1734183032487,-1427.14390017,0.00019437,3]
[345359887,1734183032496,-1427.14390018,0.00019437,3]
[345359888,1734183032505,-412.23,0.00019439,2]
[345359889,1734183032515,-631.15294334,0.00019447,2]
[345359890,1734183032524,-151.74,0.00019617,30]
[345359891,1734183032534,-2631.47,0.00019718,2]
[345359892,1734183032543,-1213.77,0.00019808,2]
[345359893,1734183032552,-631.15294334,0.00019816,2]
[345359894,1734183032561,-23666.92,0.00019941,2]
[345359895,1734183032570,-514.0,0.0001997,2]
[345359896,1734183032580,-4345.05982316,0.00019985,2]
[345359897,1734183036127,-1204.56856532,0.000197,2]
[345359898,1734183036139,-604.32310367,0.000197,2]
[345359899,1734183036150,-692.77500015,0.000197,2]
[345359900,1734183036162,-327.41088722,0.000197,2]
[345359901,1734183036190,-100.92244364,0.000197,2]
[345359902,1734183036203,-233.39317102,0.00019984,2]
[345359903,1734183036212,-3519.53438534,0.00019985,2]
[345359904,1734183036223,-1689.35,0.00019985,2]
[345359905,1734183036310,-5600.0,0.00019985,2]
[345359952,1734183038452,-1173.68232418,0.00019985,2]
[345359953,1734183038475,-398.53562393,0.00019985,2]
[345359954,1734183038528,-29996.9418276,0.00019985,2]
[345359955,1734183038537,-275.78493519,0.0002,2]
[345359956,1734183038548,-249.82894868,0.0002,2]
[345359957,1734183038557,-495.21145756,0.0002,2]
[345359958,1734183038566,-1000.0,0.00020013,2]
[345359959,1734183038576,-23900.0,0.0002006,2]
[345359960,1734183038585,-153.0,0.00020064,2]
[345359961,1734183038594,-153.0,0.00020064,2]
[345359962,1734183038603,-153.0,0.00020064,2]
[345359963,1734183038612,-325.54,0.00020111,2]
[345359964,1734183038621,-211.21,0.0002012,2]
[345359965,1734183038629,-200.0,0.0002014,2]
[345359966,1734183038638,-250.0,0.00020176,2]
[345359967,1734183038647,-631.15294334,0.00020185,2]
[345359968,1734183038656,-2000.0,0.00020201,120]
[345359969,1734183038665,-150.0,0.00020244,4]
[345359970,1734183038675,-150.0,0.00020244,4]
[345359971,1734183038684,-150.59129191,0.00020244,4]
[345359972,1734183038695,-150.39171893,0.00020244,4]
[345359973,1734183038704,-151.3551902,0.00020244,4]
[345359974,1734183038724,-150.0,0.00020244,4]
[345359975,1734183038733,-157.93,0.00020287,2]
[345359976,1734183038742,-157.93,0.00020338,2]
[345359977,1734183038751,-157.93,0.00020388,2]
[345359978,1734183038760,-150.0,0.00020548,5]
[345359979,1734183038769,-631.15294334,0.00020554,2]
[345359980,1734183038779,-781.95,0.00020656,2]
[345359981,1734183038788,-200.0,0.00020656,2]
[345359982,1734183038797,-1848.04,0.00020775,2]
[345359983,1734183038806,-878.44,0.00020801,2]
[345359984,1734183038815,-325.54,0.00020828,2]
[345359986,1734183038824,-2500.0,0.00020829,2]
[345359987,1734183038833,-14114.24591502,0.0002088,2]
[345359989,1734183038842,-200.0,0.00020897,5]
[345359991,1734183038851,-200.0,0.00020898,5]
[345359993,1734183038859,-1849.53254005,0.00020899,5]
[345359994,1734183038868,-300.0,0.000209,7]
[345359995,1734183038877,-1849.53254005,0.00020901,5]
[345359996,1734183038887,-1849.53254005,0.00020902,5]
[345359997,1734183038897,-1849.53254005,0.00020908,5]
[345359998,1734183038906,-1849.53254005,0.00020908,5]
[345359999,1734183038915,-631.15294334,0.00020924,2]
[345360000,1734183038924,-22108.20809149,0.00020929,2]
[345360001,1734183038933,-49935.5,0.00020929,2]
[345360002,1734183038948,-200.0,0.00020935,5]
[345360003,1734183038957,-200.0,0.00020939,5]
[345360004,1734183038966,-200.0,0.00020941,5]
[345360005,1734183038976,-200.0,0.00020943,5]
[345360006,1734183038985,-1849.53254005,0.00020948,5]
[345360007,1734183038994,-2100.0,0.00021,30]
[345360008,1734183039003,-17481.0,0.00021,2]
[345360009,1734183039012,-10000.0,0.00021,2]
[345360010,1734183039021,-700.0,0.00021,7]
[345360011,1734183039030,-62919.50331589,0.00021,5]
[345360012,1734183039045,-386.54,0.00021,5]
[345360013,1734183039056,-8883.18168065,0.00021,5]
[345360014,1734183039067,-10064.51988042,0.00021,5]
[345360015,1734183039077,-4207.53214,0.00021,5]
[345360016,1734183039088,-8501.6199,0.00021,5]
[345360017,1734183039102,-4524.66055997,0.00021,5]
[345360018,1734183039111,-650.0,0.00021,2]
[345360019,1734183039120,-8854.09,0.00021029,2]
[345360020,1734183039129,-6171.24944003,0.00021048,2]
[345360024,1734183040993,-5551.12535997,0.00021048,2]
[345360025,1734183041003,-167.35,0.00021084,2]
[345360026,1734183041012,-10065.4494694,0.00021093,2]
[345360027,1734183041023,-3581.43494064,0.00021093,2]
[345360028,1734183041034,-3863.86000004,0.00021093,2]
[345360029,1734183041049,-1860.07067883,0.00021093,2]
[345360046,1734183043615,-2737.39300256,0.00021093,2]
[345360047,1734183043624,-500.0,0.00021095,3]
[345360048,1734183043633,-500.0,0.00021095,3]
[345360049,1734183043643,-500.0,0.00021095,3]
[345360050,1734183043652,-500.0,0.00021095,3]
[345360051,1734183043661,-500.0,0.00021095,3]
[345360052,1734183043670,-816.96,0.00021095,3]
[345360053,1734183043679,-500.0,0.00021095,3]
[345360054,1734183043689,-500.0,0.00021095,3]
[345360055,1734183043703,-500.0,0.00021095,3]
[345360056,1734183043712,-500.0,0.00021095,3]
[345360057,1734183043721,-500.0,0.00021095,3]
[345360058,1734183043731,-500.0,0.00021095,3]
[345360059,1734183043740,-500.0,0.00021095,3]
[345360060,1734183043749,-500.0,0.00021095,3]
[345360061,1734183043760,-500.0,0.00021095,3]
[345360062,1734183043770,-500.0,0.00021095,3]
[345360063,1734183043779,-500.0,0.00021095,3]
[345360065,1734183043788,-500.0,0.00021095,3]
[345360067,1734183043797,-500.0,0.00021095,3]
[345360068,1734183043807,-516.3,0.00021095,3]
[345360069,1734183043819,-500.0,0.00021095,3]
[345360070,1734183043829,-500.0,0.00021095,3]
[345360071,1734183043838,-500.0,0.00021095,3]
[345360072,1734183043847,-500.0,0.00021095,3]
[345360073,1734183043856,-500.0,0.00021095,3]
[345360075,1734183044014,-500.0,0.00021095,3]
[345360076,1734183044024,-500.0,0.00021095,3]
[345360077,1734183044033,-500.0,0.00021095,3]
[345360078,1734183044043,-500.0,0.00021095,3]
[345360079,1734183044053,-500.0,0.00021095,3]
[345360080,1734183044062,-500.0,0.00021095,3]
[345360081,1734183044071,-500.0,0.00021095,3]
[345360082,1734183044082,-500.0,0.00021095,3]
[345360083,1734183044091,-500.0,0.00021095,3]
[345360084,1734183044100,-500.0,0.00021095,3]
[345360085,1734183044111,-500.0,0.00021095,3]
[345360086,1734183044120,-500.0,0.00021095,3]
[345360087,1734183044129,-500.0,0.00021095,3]
[345360088,1734183044139,-500.0,0.00021095,3]
[345360089,1734183044149,-289.39056394,0.00021095,3]
[345360090,1734183044161,-210.60943606,0.00021095,3]
[345360091,1734183044170,-500.0,0.00021095,3]
[345360092,1734183044180,-500.0,0.00021095,3]
[345360093,1734183044189,-648.60128945,0.00021095,3]
[345360094,1734183044201,-500.0,0.00021095,3]
[345360095,1734183044212,-500.0,0.00021095,3]
[345360096,1734183044223,-500.0,0.00021095,3]
[345360097,1734183044232,-500.0,0.00021095,3]
[345360098,1734183044241,-500.0,0.00021095,3]
[345360099,1734183044250,-500.0,0.00021095,3]
[345360100,1734183044259,-500.0,0.00021095,3]
[345360101,1734183044268,-500.0,0.00021095,3]
[345360102,1734183044278,-553.72,0.00021095,3]
[345360103,1734183044287,-500.0,0.00021095,3]
[345360104,1734183044296,-511.39,0.00021095,3]
[345360105,1734183044306,-500.0,0.00021095,3]
[345360106,1734183044315,-500.0,0.00021095,3]
[345360107,1734183044324,-500.0,0.00021095,3]
[345360108,1734183044333,-500.0,0.00021095,3]
[345360109,1734183044342,-500.0,0.00021095,3]
[345360110,1734183044351,-500.0,0.00021095,3]
[345360111,1734183044361,-1434.97,0.00021095,3]
[345360112,1734183044370,-500.0,0.00021095,3]
[345360113,1734183044379,-500.0,0.00021095,3]
[345360114,1734183044388,-500.0,0.00021095,3]
[345360115,1734183044397,-500.0,0.00021095,3]
[345360116,1734183044406,-500.0,0.00021095,3]
[345360117,1734183044415,-407.332581,0.00021095,3]
[345360118,1734183044426,-643.917071,0.00021095,3]
[345360119,1734183044435,-500.0,0.00021095,3]
[345360120,1734183044446,-500.0,0.00021095,3]
[345360121,1734183044463,-536.54831356,0.00021095,3]
[345360122,1734183044473,-500.0,0.00021095,3]
[345360123,1734183044483,-500.0,0.00021095,3]
[345360124,1734183044493,-500.0,0.00021095,3]
[345360125,1734183044502,-500.0,0.00021095,3]
[345360126,1734183044512,-500.0,0.00021095,3]
[345360127,1734183044521,-500.0,0.00021095,3]
[345360128,1734183044531,-500.0,0.00021095,3]
[345360129,1734183044540,-336.1,0.00021095,3]
[345360130,1734183044550,-500.0,0.00021095,3]
[345360131,1734183044559,-500.0,0.00021095,3]
[345360132,1734183044569,-500.0,0.00021095,3]
[345360133,1734183044579,-500.0,0.00021095,3]
[345360134,1734183044589,-500.0,0.00021095,3]
[345360135,1734183044598,-500.0,0.00021095,3]
[345360136,1734183044608,-500.0,0.00021095,3]
[345360137,1734183044617,-500.0,0.00021095,3]
[345360138,1734183044626,-500.0,0.00021095,3]
[345360139,1734183044637,-4.31130893,0.00021095,3]
[345360140,1734183044669,-528.68869107,0.00021095,3]
[345360141,1734183044679,-500.0,0.00021095,3]
[345360142,1734183044688,-500.0,0.00021095,3]
[345360143,1734183044706,-500.0,0.00021095,3]
[345360144,1734183044715,-500.0,0.00021095,3]
[345360145,1734183044724,-1000.0,0.000211,7]
[345360146,1734183044735,-172.02126468,0.000211,2]
[345360147,1734183044743,-502.08188699,0.000211,2]
[345360148,1734183044753,-716.63746176,0.00021148,2]
[345360149,1734183044765,-2689.69703824,0.00021148,2]
[345360150,1734183044774,-4806.2592,0.00021149,2]
[345360151,1734183044784,-156.5,0.000212,2]
[345360152,1734183044793,-735.94192924,0.000212,7]
[345360153,1734183044804,-620.2030558,0.000212,7]
[345360154,1734183044840,-43.85501496,0.000212,7]
[345360155,1734183044850,-265.08254144,0.000212,2]
[345360156,1734183044861,-649.42887361,0.000212,2]
[345360157,1734183044872,-1028.617992,0.000212,2]
[345360158,1734183044883,-520.59999996,0.000212,2]
[345360161,1734183046163,-500.0,0.00021095,3]
[345360162,1734183046172,-77.1400002,0.00021095,3]
[345360163,1734183046183,-422.8599998,0.00021095,3]
[345360164,1734183046199,-779.26315688,0.000212,2]
[345360165,1734183046216,-458.11566337,0.000212,2]
[345360166,1734183046228,-909.87080088,0.000212,2]
[345360167,1734183046241,-2378.4262,0.000212,2]
[345360168,1734183046253,-15400.0,0.000212,2]
[345360169,1734183046264,-790.0,0.000212,2]
[345360170,1734183046307,-965.274813,0.000212,2]
[345360171,1734183046318,-597.19999737,0.000212,2]
[345360172,1734183046330,-10294.38525297,0.000212,2]
[345360173,1734183046425,-4560.0,0.000212,2]
[345360174,1734183046436,-5862.55160518,0.000212,2]
[345360175,1734183046450,-729.11365855,0.000212,2]
[345360176,1734183046461,-3881.83957175,0.000212,2]
[345360177,1734183046607,-153.0,0.00020064,2]